[Event "Charlotte IM-C May 2022"]
[Site "Charlotte"]
[Date "2022.05.08"]
[Round "7.4"]
[White "Canty, James"]
[Black "Wang, Tianqi"]
[Result "0-1"]
[ECO "C12"]
[WhiteElo "2225"]
[BlackElo "2331"]
[Annotator "TA"]
[PlyCount "80"]
[EventDate "2022.05.04"]
[EventType "tourn"]
[EventCountry "USA"]
[SourceTitle "playchess.com"]
[Source "ChessBase"]
[SourceQuality "1"]
[TimeControl "5400+30"]

{[%evp 9,80,41,41,-30,-16,-21,8,-35,-43,-37,-39,-54,-51,-67,-77,-112,-47,-144,-145,-141,-40,-61,-35,-37,-43,-72,-74,-89,-73,-81,-70,-77,-70,-151,-63,-179,-181,-162,-173,-176,-163,-231,-225,-220,-219,-222,-216,-198,-225,-254,-250,-268,-249,-249,-249,-249,-242,-245,-229,-243,-266,-425,-439,-436,-423,-509,-458,-682,-653,-29995,-29994,-29994,-227]} 1. e4 {[%emt 0:00:01]} e6 {[%emt 0:00:07]} 2. d4 {[%emt 0:00:06]} d5 {[%emt 0:00:05]} 3. Nc3 {[%emt 0:00:08]} Nf6 {[%emt 0:00:00]} 4. Bg5 h6 {[%emt 1:32:18]} 5. Bxf6 {[%emt 0:01:02]} Qxf6 {[%emt 0:00:00]} 6. e5 {[%emt 0:01:20] C12: French: Classical System: McCutcheon Variation.} (6. exd5 $14 Bb4 7. Bb5+ Bd7 8. Bxd7+ Nxd7 9. dxe6 (9. Nge2 exd5 10. a3 Bxc3+ 11. Nxc3 c6 $11) 9... Qxe6+ 10. Qe2) 6... Qd8 $11 {[%emt 0:00:00]} 7. Qg4 {[%emt 0:00:55] [#]} Bd7 $146 {[%emt 0:00:00]} ({Predecessor:} 7... c5 8. Nf3 a6 9. Bd3 Qc7 10. O-O cxd4 11. Qxd4 Nc6 12. Qf4 Bd7 13. a3 Rc8 {0-1 (33) Bardin,C (1620)-Scheuerlein,G (1596) Bad Wiessee 2012}) 8. O-O-O {[%emt 0:00:37] The position is equal.} Qg5+ {[%emt 0:00:00]} 9. Qxg5 {[%emt 0:00:09]} hxg5 {[%emt 0:00:00]} 10. Nf3 {[%emt 0:00:47]} Be7 {[%emt 0:00:00]} 11. Be2 {[%emt 0:03:15]} a6 {[%emt 0:00:00][%cal Ba7a6,Ba6b5][%mdl 32]} 12. Nb1 {[%emt 0:03:17]} Bb5 {[%emt 0:00:00]} (12... c5 $17 {Threatens to win with ...Nc6.} 13. h3 cxd4) 13. Bxb5+ {[%emt 0:00:30]} (13. Nc3 $15) 13... axb5 $17 {[%emt 0:00:00]} 14. a3 {[%emt 0:04:47]} Nd7 (14... g4 $17 15. Nfd2 c5) 15. h3 $15 {[%emt 0:04:56]} c6 {[%emt 0:00:00]} 16. Rhe1 {[%emt 0:11:46]} Nf8 {[%emt 0:00:00]} 17. Rh1 {[%emt 0:00:30]} Ng6 {[%emt 0:00:00] Black continues to play with concentration.} 18. g3 {[%emt 1:05:24]} Kd7 {[%emt 0:07:00]} 19. Nbd2 {[%emt 0:00:00]} Rh7 {[%emt 0:00:00] Black is more active.} (19... b4 $6 20. axb4 f6 21. exf6 (21. c3 Ra1+ 22. Kc2 Rxd1 $11) 21... gxf6 22. c3 $11) 20. Rh2 $1 {[%emt 0:00:00]} f6 {[%emt 0:00:00]} 21. c3 {[%emt 0:00:00]} (21. exf6 $1 $15 gxf6 22. c3) 21... Rf8 {[%emt 0:00:00]} (21... fxe5 $17 {aiming for ...e4.} 22. dxe5 g4 23. hxg4 Rxh2 24. Nxh2 Nxe5) 22. b4 {[%emt 0:00:00] [#]} (22. exf6 $15 gxf6 23. Rdh1) 22... fxe5 $1 $19 {[%emt 0:00:00]} 23. Nxe5+ {[%emt 0:00:00]} Nxe5 {[%emt 0:00:00]} 24. dxe5 {[%emt 0:00:00]} g4 {[%emt 0:00:00]} 25. h4 {[%emt 0:00:00]} (25. Rdh1 $142 Rxh3 26. Rxh3 gxh3 27. f4) 25... Rh5 {[%emt 0:00:00]} 26. Re1 {[%emt 0:00:00]} g5 {[%emt 0:00:00][%cal Rg5h4]} 27. Rg2 {[%emt 0:00:00]} gxh4 {[%emt 0:00:00]} 28. gxh4 {[%emt 0:00:00]} Rf4 {[%emt 0:00:00]} ({And not} 28... Bxh4 29. Rh1 $17) 29. Re2 {[%emt 0:00:00]} Rxh4 {[%emt 0:00:00]} ({Don't blunder} 29... Bxh4 $2 30. Nb3 $19) 30. Kc2 {[%emt 0:00:00]} b6 {[%emt 0:00:00]} 31. Re3 {[%emt 0:00:00]} c5 {[%emt 0:00:00]} 32. Reg3 {[%emt 0:00:00]} Rf5 {[%emt 0:00:00]} ({Stronger than} 32... cxb4 33. axb4 Rf5 34. f3 $17) 33. Nf1 {[%emt 0:00:00]} Rxe5 {[%emt 0:00:00] [#] Hoping for ...Re2+.} 34. Ne3 {[%emt 0:00:00]} Bg5 {[%emt 0:00:00]} 35. Nxg4 {[%emt 0:00:00]} (35. Rxg4 {might work better.} Rxg4 36. Nxg4) 35... Re2+ {[%emt 0:00:00]} 36. Kd1 {[%emt 0:00:00]} Rd2+ {[%emt 0:00:00]} 37. Ke1 {[%emt 0:00:00]} Ra2 {[%emt 0:00:00]} 38. Ne5+ {[%emt 0:00:00]} (38. Rh2 $142 Rxh2 39. Nxh2) 38... Kd6 {[%emt 0:00:00]} 39. Nf3 {[%emt 0:00:00]} Re4+ {[%emt 0:00:00]} 40. Kd1 {[%emt 0:00:00]} Ra1+ {[%emt 0:00:00] Weighted Error Value: White=0.58/Black=0.14 (very precise)} 0-1

[Event "Charlotte IM-C May 2022"]
[Site "Charlotte"]
[Date "2022.05.08"]
[Round "8.1"]
[White "Martin Del Campo Cardenas, Roberto Abel"]
[Black "Johnson, Donald"]
[Result "1/2-1/2"]
[ECO "C47"]
[WhiteElo "2263"]
[BlackElo "2102"]
[Annotator "TA"]
[PlyCount "119"]
[EventDate "2022.05.04"]
[EventType "tourn"]
[EventCountry "USA"]
[SourceTitle "playchess.com"]
[Source "ChessBase"]
[SourceQuality "1"]
[TimeControl "5400+30"]

{[%evp 10,119,-19,-17,-51,-37,-39,-45,-52,-47,-38,-58,-48,-41,-18,-12,-14,-26,-18,-33,-22,-62,-68,-72,-67,-67,-69,-68,-66,-80,-45,-40,-50,-140,-125,-234,-233,-342,-314,-293,-275,-283,-297,-275,-283,-284,-275,-258,-276,-249,-83,-142,-145,-145,0,0,0,0,0,0,0,0,0,-70,-70,-70,-70,-70,-70,-70,-70,-70,-70,-265,-47,-47,-47,-12837,-12838,-12838,-12839,-12839,-100,-100,-100,-100,0,-100,-100,-100,0,0,0,0,0,0,0,0,0,0,0,0,0,0,0,0,0,0,0,0,0,0]} 1. e4 {[%emt 0:06:22]} e5 {[%emt 0:00:01]} 2. Nf3 {[%emt 0:01:22]} Nc6 {[%emt 0:00:01]} 3. Nc3 {[%emt 0:00:40]} Nf6 {[%emt 1:31:58]} 4. d4 {[%emt 0:00:17]} exd4 {[%emt 0:00:00]} 5. Nd5 {[%emt 0:00:03]} Nb4 {[%emt 0:00:00]} 6. Bc4 {[%emt 0:03:27]} Nbxd5 {[%emt 0:00:00] C47: Scotch Four Knights and Four Knights with 4 g3.} 7. exd5 {[%emt 0:00:01]} Bb4+ {[%emt 0:00:00]} 8. Bd2 {[%emt 0:00:12] 8.Kf1 deserves study.} Qe7+ {[%emt 0:00:00] Black is slightly better.} 9. Qe2 {[%emt 0:00:14]} Bxd2+ {[%emt 0:00:00]} 10. Kxd2 {[%emt 0:00:11]} Qxe2+ $1 {[%emt 0:00:00]} 11. Kxe2 {[%emt 0:00:03]} c5 {[%emt 0:00:00]} 12. dxc6 $1 {[%emt 0:00:25]} bxc6 {[%emt 0:00:00]} 13. Nxd4 {[%emt 0:00:11]} d5 {[%emt 0:00:00]} 14. Bb3 {[%emt 0:07:05]} Bd7 {[%emt 0:00:00]} 15. Ba4 {[%emt 0:02:41]} c5 {[%emt 0:00:00][%csl LRa4,LRd4]} 16. Bxd7+ {[%emt 0:01:34]} Kxd7 {[%emt 0:00:00]} 17. Nb3 {[%emt 0:03:37]} Rhe8+ {[%emt 0:00:00]} 18. Kf3 {[%emt 0:03:05] [#]} Ne4 $146 {[%emt 0:00:00]} ({Predecessor:} 18... Kc6 19. Rhe1 Nd7 20. g3 Ne5+ 21. Kg2 Nc4 22. Rab1 Rxe1 23. Rxe1 Kd6 24. Rb1 Rb8 {0-1 (36) Koronghy,G (2056)-Dankhazi,A (2289) Ajka 2018}) 19. Rad1 {[%emt 0:07:18]} Re5 {[%emt 0:00:00]} 20. Rhe1 {[%emt 0:06:16][%cal Oe1e4]} Kc6 {[%emt 0:00:00]} 21. c4 {[%emt 0:03:19]} (21. Ke2 $15) 21... Rae8 $1 $17 {[%emt 0:00:00]} (21... dxc4 $6 22. Na5+ Kb5 23. Nxc4 $1 Ng5+ 24. Kg3 Rxe1 25. Na3+ Kc6 26. Rxe1 $11) 22. cxd5+ {[%emt 0:09:41]} (22. Rxd5 $17 Nd2+ 23. Kg3 Rxe1 24. Rxc5+ Kb7 25. Nxd2) 22... Kd6 $19 {[%emt 0:00:00]} 23. Rf1 {[%emt 0:32:33]} (23. Rxe4 $142 Rxe4 24. Rc1) 23... Rf5+ {[%emt 0:00:00][%mdl 64] Skewer, Deflection} 24. Kg4 {[%emt 0:00:12]} Rxf2 {[%emt 0:00:00]} 25. Na5 {[%emt 0:00:29]} Rxg2+ {[%emt 0:00:00]} 26. Kh3 {[%emt 0:00:26]} Rc2 {[%emt 0:00:00]} 27. Nb7+ {[%emt 0:00:45]} Kc7 $1 {[%emt 0:00:00]} 28. Rxf7+ {[%emt 0:01:52]} Kb6 $1 {[%emt 0:00:00]} 29. Rg1 {[%emt 0:01:05] [#] Against Ng5+} Re5 $2 {[%emt 0:00:00]} (29... Rxb2 30. d6 Nf6 31. d7 Re3+ 32. Rg3 Rxg3+ 33. Kxg3 Nxd7 34. Rxd7 $11) (29... g5 $1 $19 {Threatens to win with ...h5.} 30. Rg2 g4+ 31. Rxg4 Nf2+ 32. Rxf2 Rxf2) 30. Rgxg7 {[%emt 0:01:53]} (30. d6 $142 Rh5+ 31. Kg4 Rg5+ 32. Kf4 Nxd6 33. Rxg5 Nxf7 34. Rxg7) 30... Rxd5 $17 {[%emt 0:00:00] ...Ng5+ is the strong threat.} (30... Rxb2 31. d6 $14) 31. Re7 {[%emt 0:00:52]} Rh5+ {[%emt 0:00:00]} (31... Rd3+ $17 32. Kg4 Rd4 33. Re6+ Nd6+ 34. Kh3 Rd3+ 35. Rg3 Rxg3+ 36. Kxg3 Kxb7 37. Rxd6 Rxb2 38. Rd7+ Kb6 39. Rxh7 c4) 32. Kg4 $11 {[%emt 0:00:20]} Nf6+ {[%emt 0:00:00]} 33. Kg3 {[%emt 0:00:23] Black must now prevent Re6+.} Rhxh2 {[%emt 0:00:00]} 34. Re6+ {[%emt 0:00:11]} Kb5 {[%emt 0:00:00]} 35. Nd6+ {[%emt 0:00:49][%mdl 64] Discovered Attack} Kc6 {[%emt 0:16:00] And now ...Nh5+ would win.} 36. Rxf6 {[%emt 0:01:01]} (36. Ne8+ $11 Kd5 37. Rd6+ (37. Rxf6 Rcg2+ 38. Kf3 Rf2+ 39. Kg4 Rfg2+ 40. Kf5 Rf2+ 41. Kg5 Rfg2+ 42. Kf5 Rf2+ 43. Kg5 Rfg2+ 44. Kf5 $11) 37... Kc4 38. b3+ (38. Rxf6 Rcg2+ 39. Kf3 Rf2+ 40. Kg3 Rfg2+ 41. Kf4 Rf2+ 42. Kg5 Rhg2+ 43. Kh6 Rh2+ 44. Kg5 Rhg2+ 45. Kh6 Rh2+ 46. Kg5 $11) 38... Kc3 39. Rxf6 Rcg2+ 40. Kf3 Rf2+ 41. Ke4 Re2+ 42. Kd5 Rxe8 43. Rf3+ (43. Rxa7 Rc8 $11) 43... Kb2 44. Rxa7) 36... Rcg2+ $15 {[%emt 0:00:00][%mdl 64] Skewer} 37. Kf4 {[%emt 0:01:18] Threatening mate with Nc4+.} Rf2+ {[%emt 0:00:00][%mdl 64] Skewer} (37... Rh4+ $2 38. Kf3 Rxg7 39. Nf5+ Kc7 40. Nxh4 $18) 38. Kg3 $1 {[%emt 0:02:42]} Rhg2+ {[%emt 0:00:00]} 39. Kh3 {[%emt 0:00:03]} Rxg7 {[%emt 0:00:00]} 40. Rxf2 {[%emt 0:01:17] Strongly threatening Nc4.} Kxd6 {[%mdl 4096] Endgame KR-KR} 41. Rf6+ $2 {[%emt 0:00:56]} (41. Rf4 $15) 41... Kd5 $2 {[%emt 0:00:00]} (41... Ke5 $19 42. Ra6 c4) 42. b3 $1 {[%emt 0:00:28]} c4 {[%emt 0:00:00]} 43. Rf5+ $2 {[%emt 0:01:53][%mdl 8192]} (43. bxc4+ $15 Kxc4 44. Rf4+ Kb5 45. Rd4) 43... Ke4 $19 {[%emt 0:00:00]} 44. Rc5 {[%emt 0:00:03]} cxb3 {[%emt 0:00:00]} 45. axb3 {[%emt 0:00:01]} Kd4 $2 {[%emt 0:00:00]} (45... Rb7 $19 {is more deadly.} 46. Rc3 Kd4) 46. Rb5 $17 {[%emt 0:00:14]} Kc3 {[%emt 0:00:00]} 47. Kh4 {[%emt 0:00:33]} Kd4 {[%emt 0:00:00]} ({Black should play} 47... Kb2 $17 48. Kh5 a6) 48. Kh5 {[%emt 0:00:58]} (48. Kh3 $1 $11 {was the only way to keep the balance.}) 48... a6 {[%emt 0:01:23]} 49. Rb6 {[%emt 0:00:19] [#]} Ra7 {[%emt 0:02:02]} (49... Rg6 $1 $17 {[%cal Rg6b6]} 50. Rb7 Kc3) 50. b4 $11 {[%emt 0:00:16] The position is equal.} Ke5 {[%emt 0:01:06]} 51. b5 {[%emt 0:00:20]} axb5 {[%emt 0:00:19]} 52. Rxb5+ {[%emt 0:00:03]} Kf6 {[%emt 0:00:01]} 53. Rb6+ {[%emt 0:00:12]} Kg7 {[%emt 0:00:06]} 54. Rb5 {[%emt 0:00:01]} Rf7 {[%emt 0:00:04]} 55. Rg5+ {[%emt 0:00:10]} Kh8 {[%emt 0:00:02]} 56. Ra5 {[%emt 0:00:07]} Rb7 {[%emt 0:00:17]} 57. Kh6 {[%emt 0:00:17] aiming for Ra8+.} Rb6+ {[%emt 0:00:06]} 58. Kh5 {[%emt 0:00:13]} h6 {[%emt 0:00:00]} 59. Ra7 {[%emt 0:00:07]} Kg8 {[%emt 0:00:05]} 60. Rc7 {[%emt 0:00:04] Weighted Error Value: White=0.34/Black=0.29 (precise)} 1/2-1/2

[Event "Charlotte IM-C May 2022"]
[Site "Charlotte"]
[Date "2022.05.08"]
[Round "8.2"]
[White "Wang, Tianqi"]
[Black "Zapata, Alonso"]
[Result "1-0"]
[ECO "B22"]
[WhiteElo "2331"]
[BlackElo "2367"]
[Annotator "TA"]
[PlyCount "61"]
[EventDate "2022.05.04"]
[EventType "tourn"]
[EventCountry "USA"]
[SourceTitle "playchess.com"]
[Source "ChessBase"]
[SourceQuality "1"]
[TimeControl "5400+30"]

{[%evp 22,61,16,11,29,14,48,54,53,44,52,32,43,23,20,20,28,22,22,16,34,22,81,58,60,48,57,60,52,52,41,49,139,118,156,159,602,598,589,583,535,422]} 1. e4 {[%emt 0:00:06]} c5 {[%emt 0:00:17]} 2. c3 {[%emt 0:00:06]} d5 {[%emt 0:00:21]} 3. exd5 {[%emt 0:00:14]} Qxd5 {[%emt 0:00:11]} 4. d4 {[%emt 0:00:10]} Nc6 {[%emt 0:01:06]} 5. Nf3 {[%emt 0:01:00]} Bg4 {[%emt 0:00:22]} 6. Be2 {[%emt 1:31:54]} cxd4 {[%emt 0:05:12]} 7. cxd4 {[%emt 0:00:00]} e6 {[%emt 0:00:04]} 8. O-O {[%emt 0:00:00]} Nf6 {[%emt 0:00:05]} 9. Nc3 {[%emt 0:00:00]} Qa5 {[%emt 0:00:18]} 10. h3 {[%emt 0:00:00]} Bh5 {[%emt 0:00:07]} 11. Qb3 {[%emt 0:00:00] 11.a3 is setting a new trend.} Qb4 {[%emt 0:00:05]} 12. Rd1 {[%emt 0:00:00]} Rd8 {[%emt 0:18:25] B22: Sicilian: 2 c3.} 13. Be3 {[%emt 0:00:00]} Be7 {[%emt 0:03:03]} 14. g4 {[%emt 0:00:00][%cal Bg2g4,Bg4g5][%mdl 32]} Bg6 {[%emt 0:00:08] White is slightly better.} 15. Ne5 {[%emt 0:00:00]} O-O {[%emt 0:02:23][%cal Rc6d4]} 16. g5 {[%emt 0:00:00] [#] Hoping for Nxc6.} Nd7 $146 {[%emt 0:05:35]} ({Predecessor:} 16... Nd5 17. Nxd5 exd5 {½-½ (17) Denisov,L (2145)-Leisle,D (2170) Novokuznetsk 1998}) 17. Nxd7 {[%emt 0:00:00]} Qxb3 {[%emt 0:12:28]} 18. axb3 {[%emt 0:00:00][%cal Ba2b3,Bb3b4,Bb4b5][%mdl 32]} Rxd7 {[%emt 0:00:23]} 19. d5 {[%emt 0:00:00]} exd5 {[%emt 0:01:58] ...d4 is the strong threat.} 20. Nxd5 {[%emt 0:00:00][%cal Od5f6] Threatens to win with Nf6+!} Bd6 {[%emt 0:04:59]} 21. b4 {[%emt 0:00:00] Black must now prevent b5.} Be4 {[%emt 0:13:56]} (21... a6 $11) 22. Bg4 {[%emt 0:00:00]} Rdd8 {[%emt 0:03:02]} 23. Nc3 {[%emt 0:00:00]} Bc2 {[%emt 0:08:01]} 24. Rd2 {[%emt 0:00:00]} Bb3 {[%emt 0:03:31]} 25. b5 {[%emt 0:00:00]} Ne5 {[%emt 0:00:36]} 26. Be2 {[%emt 0:00:00]} f5 {[%emt 0:12:46]} (26... a6 $14) 27. Rxa7 {[%emt 0:00:00]} f4 {[%emt 0:00:36] [#]} 28. Bb6 $36 {[%emt 0:00:00][%mdl 2048] White is really pushing.} f3 $2 {[%emt 0:00:16]} (28... Rd7 $16) 29. Bd1 $18 {[%emt 0:00:00] White is clearly winning.} Be6 {[%emt 0:04:15]} 30. Bxd8 {[%emt 0:00:00]} Rxd8 {[%emt 0:00:25]} 31. b3 {[%emt 0:00:18] Prevents Nc4.  Weighted Error Value: White=0.07 (flawless) /Black=0.58} 1-0

[Event "Charlotte IM-C May 2022"]
[Site "Charlotte"]
[Date "2022.05.08"]
[Round "8.5"]
[White "Andrews, Todd"]
[Black "Fawole, John Oyeyemi"]
[Result "1-0"]
[ECO "B86"]
[WhiteElo "2209"]
[BlackElo "2118"]
[Annotator "TA"]
[PlyCount "108"]
[EventDate "2022.05.04"]
[EventType "tourn"]
[EventCountry "USA"]
[SourceTitle "playchess.com"]
[Source "ChessBase"]
[SourceQuality "1"]
[TimeControl "5400+30"]

{[%evp 13,108,11,13,0,0,0,0,-12,-12,-14,-25,-62,-55,-53,-45,-61,-23,-51,-38,-39,-11,-87,6,-128,-132,-132,-132,-130,-130,-130,-130,-139,-136,-133,-131,-139,-117,-123,-112,-115,0,0,0,-114,-90,-91,-97,-255,-256,-407,-345,-491,-83,-81,-96,-87,68,63,155,89,65,-851,252,239,289,295,343,335,267,0,0,0,0,0,0,0,50,18,703,685,1004,991,942,879,729,658,1757,1494,1782,1518,29983,29984,29984,29985,29985,29986,29978]} 1. e4 {[%emt 0:12:26]} c5 {[%emt 0:00:05]} 2. Nf3 {[%emt 0:00:07]} d6 {[%emt 0:00:08]} 3. d4 {[%emt 0:00:05]} cxd4 {[%emt 0:00:05]} 4. Nxd4 {[%emt 0:00:05]} Nf6 {[%emt 0:00:05]} 5. Nc3 {[%emt 0:00:08]} a6 {[%emt 0:00:05]} 6. Bc4 {[%emt 0:00:06]} e6 {[%emt 0:00:23]} 7. Bb3 {[%emt 0:01:33]} Be7 {[%emt 0:00:43][%cal Bf8e7,Be7g5,Bg5h6][%mdl 32] 7...Nbd7 is a critical line.} 8. Qe2 {[%emt 0:00:12] B86: Sicilian Scheveningen/Najdorf: 6 Bc4, without early ...b5.} O-O {[%emt 0:00:33]} 9. g4 {[%emt 0:00:33]} Nc6 {[%emt 0:00:22]} 10. Nxc6 {[%emt 0:01:39] The position is equal.} bxc6 {[%emt 0:00:12]} 11. g5 {[%emt 0:00:09]} Nd7 {[%emt 0:00:04] [#]} 12. Be3 $146 {[%emt 0:05:40]} ({Predecessor:} 12. h4 d5 13. Be3 a5 14. exd5 cxd5 15. Bd4 Nc5 16. Qe3 {½-½ (16) Schmidt,W (2078)-Striebich,R (2206) Germany 2009}) 12... Bxg5 {[%emt 0:01:45]} 13. O-O-O {[%emt 0:00:09]} d5 {[%emt 0:00:23]} 14. f4 {[%emt 0:01:12]} Bh6 {[%emt 0:00:30]} (14... Bf6 $5 {[%cal Rf6c3]}) 15. Rhg1 {[%emt 0:00:29]} Kh8 {[%emt 0:01:11]} 16. Kb1 {[%emt 0:06:42]} f5 {[%emt 0:00:25]} 17. e5 {[%emt 0:04:02]} (17. exd5 $11 exd5 18. Qf3) 17... Qa5 {[%emt 0:02:10]} ({Black should try} 17... Qc7 $17) 18. Bd2 {[%emt 0:02:29]} (18. Qf2 $1 $11 {was the only way to keep the balance.}) 18... Qc7 $1 $17 {[%emt 0:00:21]} 19. Rg3 {[%emt 0:03:14]} Bb7 {[%emt 0:03:44][%cal Bc8b7,Bb7c6,Bc6e4][%mdl 32]} 20. Na4 {[%emt 0:08:15]} c5 {[%emt 0:00:29]} 21. c4 {[%emt 0:00:10]} d4 {[%emt 0:00:42]} 22. Rdg1 {[%emt 0:03:31]} Bc6 {[%emt 0:05:03]} 23. Rh3 {[%emt 0:03:09]} Rab8 {[%emt 0:04:59]} 24. Qh5 {[%emt 0:01:20][%cal Og1g7] And now Rxg7! would win.} Be4+ {[%emt 0:01:43]} 25. Ka1 {[%emt 0:00:34][%cal Og1g7]} Rg8 {[%emt 0:02:08]} 26. Qf7 {[%emt 0:25:31][%cal Oa4c5]} Rgf8 {[%emt 0:12:54]} 27. Qh5 {[%emt 0:03:21][%cal Og1g7]} Rg8 {[%emt 0:01:09]} 28. Qf7 {[%emt 0:10:29]} Rbf8 {[%emt 0:21:57]} 29. Qxe6 {[%emt 0:03:32]} Nxe5 $1 {[%emt 0:00:49]} 30. Ba5 $2 {[%emt 0:02:14]} Qxa5 $19 {[%emt 0:01:53]} 31. Rxh6 {[%emt 0:00:04]} (31. Qxe5 $142 Re8 32. Qxc5 Qxc5 33. Nxc5) 31... Ng4 {[%emt 0:00:44]} (31... Nf3 $2 32. Rxh7+ $3 {[%mdl 512]} Kxh7 33. Qg6+ Kh8 34. Qh5#) 32. Rh4 {[%emt 0:01:44]} (32. Rh3 {was called for.}) 32... Qd2 $2 {[%emt 0:00:43]} (32... Re8 $19 33. Qb6 Qxb6 34. Nxb6 d3) 33. Rhxg4 $17 {[%emt 0:01:14]} fxg4 {[%emt 0:00:39]} 34. Qxe4 {[%emt 0:00:01] Bc2 is the strong threat.} Re8 $2 {[%emt 0:00:13]} (34... Rxf4 $17 35. Qc2 Qxc2 36. Bxc2 Rc8) 35. Qb1 $14 {[%emt 0:00:55]} Re2 {[%emt 0:01:51]} (35... Qb4 $14) 36. a3 {[%emt 0:00:20]} ({Avoid the trap} 36. Rxg4 $2 Re1 37. Rg1 Rxb1+ $19) ({White should play} 36. Nxc5 {Hoping for Nd3.} Qxf4 37. Bd1 (37. Nxa6 d3 $14) 37... Rxh2 38. Bxg4 (38. Rxg4 Qf2 $16)) 36... Rb8 {[%emt 0:01:00]} 37. Ka2 {[%emt 0:00:21][%mdl 8192] [#]} (37. Nxc5 $14 a5 38. Ka2) 37... Re3 $4 {[%emt 0:02:55][%mdl 8192]} (37... Rxb3 $1 $19 {[%mdl 512] avoids the disaster.} 38. Kxb3 Re3+ 39. Nc3 dxc3) 38. Nxc5 $18 {[%emt 0:00:34]} Qa5 {[%emt 0:02:55]} 39. Nd3 {[%emt 0:00:11] Strongly threatening Qc2.} Qf5 {[%emt 0:00:30]} 40. Rd1 {[%emt 0:00:40]} Re2 {[%emt 0:00:20] [#]} 41. c5 $2 {[%emt 0:01:06]} (41. Qc1 $1 $18) 41... Rxb3 $1 $14 {[%emt 0:10:36]} 42. Kxb3 {[%emt 0:00:02][%cal Ba2b3,Bb3b4,Bb4b5,Bb5a5][%mdl 32]} Qf7+ {[%emt 0:00:06]} 43. Kb4 {[%emt 0:00:27] Black must now prevent Qc1.} a5+ $1 {[%emt 0:03:32]} 44. Kb5 {[%emt 0:01:02] Threatens to win with Re1.} Qb3+ {[%emt 0:01:35]} 45. Nb4 $1 {[%emt 0:00:01]} Re8 $2 {[%emt 0:01:17][%mdl 8192] [#]} (45... axb4 $11 46. Qd3 Qxb2 47. axb4 Re8 48. Qxd4 Qe2+ 49. Kb6 Rb8+ 50. Ka7 (50. Kc7 Rg8 $11) 50... Rg8) 46. Qd3 $1 $18 {[%emt 0:00:59]} Rb8+ {[%emt 0:00:06]} (46... Qxb2 47. Rd2) 47. Kxa5 {[%emt 0:00:08]} Ra8+ {[%emt 0:00:37]} 48. Na6 {[%emt 0:00:27]} Qxb2 {[%emt 0:02:24]} 49. Rb1 {[%emt 0:00:01]} Qa2 {[%emt 0:01:35]} 50. Qb3 {[%emt 0:00:50]} Qd2+ {[%emt 0:00:16]} 51. Qb4 {[%emt 0:00:02]} Qxf4 {[%emt 0:00:14] [#]} 52. Qb8+ $1 {[%emt 0:00:56][%mdl 512] White mates.} Rxb8 {[%emt 0:00:16]} 53. Rxb8+ {[%emt 0:00:02]} Qxb8 {[%emt 0:00:11]} 54. Nxb8 {[%emt 0:00:02]} d3 {[%emt 0:00:12] Weighted Error Value: White=0.44/Black=0.63} 1-0